bitfinex-derivatives/quotes_SOLF0:USTF0_20260207
["timestamp","ask_amount","ask_price","bid_price","bid_amount"]
[1770498226821,10.50050333,88.816,88.764,50.06364258]
[1770498227331,10.50050333,88.816,88.774,10.1449]
[1770498227518,10.50050333,88.82,88.774,60.20854258]
[1770498227714,10.50050333,88.821,88.774,50.06364258]
[1770498228122,52.58151806,88.822,88.774,50.06364258]
[1770498231222,10.50050333,88.821,88.774,50.06364258]
[1770498232430,63.08202139,88.822,88.774,50.06364258]
[1770498235321,10.50050333,88.822,88.774,50.06364258]
[1770498235525,10.50050333,88.827,88.774,50.06364258]
[1770498237134,10.50050333,88.837,88.774,50.06364258]
[1770498237334,10.50050333,88.838,88.774,50.06364258]
[1770498237531,10.50050333,88.842,88.79,9.22576604]
[1770498237728,10.50050333,88.847,88.791,50.06364258]
[1770498238032,8.24403305,88.846,88.791,50.06364258]
[1770498238234,8.24403305,88.845,88.791,50.06364258]
[1770498238429,8.24403305,88.844,88.791,50.06364258]
[1770498238629,8.24403305,88.843,88.791,50.06364258]
[1770498238834,18.38123305,88.842,88.791,50.06364258]
[1770498239136,8.24403305,88.841,88.791,50.06364258]
[1770498239333,10.1372,88.842,88.791,50.06364258]
[1770498239334,8.24403305,88.84,88.791,50.06364258]
[1770498239633,8.24403305,88.839,88.791,50.06364258]
[1770498239833,8.24403305,88.838,88.791,50.06364258]
[1770498240034,8.24403305,88.837,88.791,50.06364258]
[1770498240235,8.24403305,88.836,88.791,50.06364258]
[1770498240434,8.24403305,88.835,88.791,50.06364258]
[1770498240734,8.24403305,88.834,88.791,50.06364258]
[1770498240932,8.24403305,88.833,88.791,50.06364258]
[1770498241132,8.24403305,88.832,88.791,50.06364258]
[1770498241327,8.24403305,88.831,88.791,50.06364258]
[1770498241532,8.24403305,88.83,88.791,50.06364258]
[1770498241728,8.24403305,88.83,88.732,20.67397599]
[1770498241729,52.58151806,88.828,88.776,50.06364258]
[1770498241933,52.58151806,88.826,88.776,50.06364258]
[1770498242137,8.23567217,88.825,88.776,50.06364258]
[1770498242332,8.23567217,88.824,88.776,50.06364258]
[1770498242532,8.23567217,88.823,88.776,50.06364258]
[1770498242835,8.23567217,88.822,88.776,50.06364258]
[1770498243035,8.23567217,88.821,88.776,50.06364258]
[1770498243237,8.23567217,88.82,88.776,50.06364258]
[1770498243443,8.23567217,88.819,88.778,50.06364258]
[1770498243739,52.58151806,88.837,88.778,50.06364258]
[1770498243934,52.58151806,88.835,88.778,50.06364258]
[1770498244139,8.23493838,88.834,88.778,50.06364258]
[1770498244340,8.23493838,88.833,88.778,50.06364258]
[1770498244536,8.23493838,88.832,88.778,50.06364258]
[1770498244732,8.23493838,88.831,88.782,50.06364258]
[1770498244937,8.23493838,88.83,88.782,50.06364258]
[1770498245137,8.23493838,88.829,88.782,50.06364258]
[1770498245336,52.58151806,88.848,88.782,50.06364258]
[1770498245538,59.05970696,88.847,88.782,50.06364258]
[1770498245739,8.2315335,88.846,88.792,49.32076686]
[1770498246033,8.2315335,88.845,88.792,49.32076686]
[1770498246241,8.2315335,88.844,88.792,49.32076686]
[1770498246544,8.2315335,88.843,88.792,49.32076686]
[1770498246734,8.2315335,88.842,88.792,49.32076686]
[1770498246935,8.2315335,88.841,88.792,49.32076686]
[1770498247233,8.2315335,88.84,88.792,49.32076686]
[1770498247431,8.2315335,88.839,88.792,49.32076686]
[1770498247638,8.2315335,88.838,88.792,49.32076686]
[1770498247940,8.2315335,88.837,88.792,49.32076686]
[1770498248140,8.2315335,88.836,88.792,49.32076686]
[1770498248339,8.2315335,88.835,88.792,49.32076686]
[1770498248541,8.2315335,88.834,88.792,49.32076686]
[1770498248737,8.2315335,88.833,88.792,49.32076686]
[1770498248943,50.82817346,88.847,88.792,49.32076686]
[1770498249245,8.22656119,88.846,88.799,49.32076686]
[1770498249543,8.22656119,88.845,88.799,49.32076686]
[1770498249740,14.00220531,88.871,88.79,9.22576604]
[1770498249741,50.82817346,88.873,88.81,49.32076686]
[1770498250040,50.82817346,88.866,88.79,9.22576604]
[1770498250243,50.82817346,88.841,88.791,49.32076686]
[1770498250436,50.82817346,88.839,88.791,49.32076686]
[1770498250750,50.82817346,88.827,88.763,49.32076686]
[1770498250943,50.82817346,88.819,88.763,49.32076686]
[1770498251144,50.82817346,88.817,88.763,49.32076686]
[1770498251343,8.2224125,88.816,88.763,49.32076686]
[1770498251639,50.82817346,88.814,88.748,53.22839402]
[1770498251834,50.07148946,88.812,88.748,53.22839402]
[1770498252036,50.07148946,88.81,88.748,53.22839402]
[1770498252232,10.1419,88.801,88.748,53.22839402]
[1770498252437,8.2224125,88.8,88.748,53.22839402]
[1770498252633,8.2224125,88.799,88.748,53.22839402]
[1770498252836,8.2224125,88.798,88.748,53.22839402]
[1770498253040,8.2224125,88.797,88.748,53.22839402]
[1770498253243,8.2224125,88.796,88.748,53.22839402]
[1770498253441,50.07148946,88.822,88.751,53.22839402]
[1770498253743,58.29766686,88.821,88.751,53.22839402]
[1770498253945,8.2261774,88.82,88.751,53.22839402]
[1770498254245,8.2261774,88.819,88.751,53.22839402]
[1770498254545,8.2261774,88.818,88.751,53.22839402]
[1770498254742,8.2261774,88.817,88.753,53.22839402]
[1770498254943,8.2261774,88.816,88.753,53.22839402]
[1770498255144,8.2261774,88.815,88.753,53.22839402]
[1770498255337,8.2261774,88.814,88.753,53.22839402]
[1770498255538,8.2261774,88.813,88.753,53.22839402]
[1770498255847,50.07148946,88.819,88.765,53.22839402]
[1770498256145,8.22718561,88.818,88.765,53.22839402]
[1770498256340,8.22718561,88.817,88.765,53.22839402]
[1770498256539,8.22718561,88.816,88.765,53.22839402]
[1770498256740,8.22718561,88.815,88.765,53.22839402]
[1770498256940,50.07148946,88.819,88.765,53.22839402]
[1770498257147,8.22853844,88.818,88.765,53.22839402]
[1770498257446,8.22853844,88.817,88.765,53.22839402]
[1770498257642,8.22853844,88.816,88.765,53.22839402]
[1770498257842,8.22853844,88.815,88.765,53.22839402]
[1770498258042,8.22853844,88.814,88.765,53.22839402]
[1770498258246,50.07148946,88.819,88.765,53.22839402]
[1770498258446,8.23014631,88.818,88.765,53.22839402]
[1770498258745,8.23014631,88.817,88.765,53.22839402]
[1770498258944,8.23014631,88.816,88.765,53.22839402]
[1770498259147,8.23014631,88.815,88.765,53.22839402]
[1770498259348,8.23014631,88.814,88.765,53.22839402]
[1770498259646,8.23014631,88.813,88.765,53.22839402]
[1770498259948,8.23014631,88.812,88.767,53.22839402]
[1770498260147,50.07148946,88.819,88.767,53.22839402]
[1770498260348,8.23044497,88.818,88.767,53.22839402]
[1770498260542,8.23044497,88.817,88.767,53.22839402]
[1770498260743,8.23044497,88.816,88.767,53.22839402]
[1770498260944,8.23044497,88.815,88.771,53.22839402]
[1770498261249,8.23044497,88.814,88.771,53.22839402]
[1770498261449,50.07148946,88.819,88.771,53.22839402]
[1770498261649,8.23065125,88.818,88.771,53.22839402]
[1770498261849,8.23065125,88.817,88.771,53.22839402]
[1770498262149,8.23065125,88.816,88.771,53.22839402]
[1770498262347,8.23065125,88.815,88.771,53.22839402]
[1770498262549,8.23065125,88.814,88.771,53.22839402]
[1770498262744,8.23065125,88.813,88.771,53.22839402]
[1770498262944,8.23065125,88.812,88.771,53.22839402]
[1770498263143,8.23065125,88.811,88.771,53.22839402]
[1770498263351,8.23065125,88.81,88.771,53.22839402]
[1770498263645,8.23065125,88.809,88.771,53.22839402]
[1770498263853,8.23065125,88.808,88.771,53.22839402]
[1770498264052,50.07148946,88.819,88.771,53.22839402]
[1770498264253,8.23328323,88.818,88.771,53.22839402]
[1770498264451,8.23328323,88.817,88.771,53.22839402]
[1770498264651,8.23328323,88.816,88.771,53.22839402]
[1770498264852,8.23328323,88.815,88.771,53.22839402]
[1770498265054,8.23328323,88.814,88.771,53.22839402]
[1770498265253,50.07148946,88.819,88.771,53.22839402]
[1770498265254,8.23328323,88.813,88.771,53.22839402]
[1770498265455,8.23328323,88.812,88.771,53.22839402]
[1770498265654,8.23328323,88.811,88.771,53.22839402]
[1770498265955,58.30477269,88.81,88.771,53.22839402]
[1770498266151,58.30477269,88.809,88.771,53.22839402]
[1770498266356,58.30477269,88.808,88.771,53.22839402]
[1770498266655,8.23328323,88.807,88.771,53.22839402]
[1770498266858,8.23328323,88.806,88.771,53.22839402]
[1770498267058,8.23328323,88.805,88.771,53.22839402]
[1770498267257,8.23328323,88.804,88.771,53.22839402]
[1770498267457,8.23328323,88.803,88.771,53.22839402]
[1770498267653,8.23328323,88.802,88.771,53.22839402]
[1770498267853,8.23328323,88.801,88.771,53.22839402]
[1770498268057,58.30477269,88.8,88.749,53.22839402]
[1770498268358,50.07148946,88.798,88.749,53.22839402]
[1770498268559,50.07148946,88.796,88.749,53.22839402]
[1770498268752,8.23328323,88.795,88.749,53.22839402]
[1770498268961,8.23328323,88.794,88.749,53.22839402]
[1770498269260,8.23328323,88.793,88.749,53.22839402]
[1770498269454,8.23328323,88.792,88.749,53.22839402]
[1770498269651,8.23328323,88.791,88.749,53.22839402]
[1770498269850,8.23328323,88.79,88.749,53.22839402]
[1770498270056,8.23328323,88.789,88.749,53.22839402]
[1770498270251,8.23328323,88.788,88.749,53.22839402]
[1770498270458,8.23328323,88.787,88.749,53.22839402]
[1770498270658,8.23328323,88.786,88.749,53.22839402]
[1770498270859,50.07148946,88.796,88.749,53.22839402]
[1770498271059,8.23977741,88.795,88.749,53.22839402]
[1770498271360,8.23977741,88.794,88.749,53.22839402]
[1770498271566,8.23977741,88.793,88.749,53.22839402]
[1770498271864,50.07148946,88.796,88.749,53.22839402]
[1770498271865,8.23977741,88.792,88.749,53.22839402]
[1770498272064,8.23977741,88.791,88.749,53.22839402]
[1770498272266,8.23977741,88.79,88.749,53.22839402]
[1770498272468,8.23977741,88.789,88.749,53.22839402]
[1770498272663,8.23977741,88.788,88.749,53.22839402]
[1770498272863,8.23977741,88.787,88.749,53.22839402]
[1770498273165,50.07148946,88.796,88.749,53.22839402]
[1770498273354,10.50040955,88.817,88.749,53.22839402]
[1770498273554,8.23735787,88.816,88.749,53.22839402]
[1770498273755,8.23735787,88.815,88.749,53.22839402]
[1770498273956,8.23735787,88.814,88.749,53.22839402]
[1770498274155,8.23735787,88.813,88.749,53.22839402]
[1770498274356,8.23735787,88.812,88.749,53.22839402]
[1770498274662,8.23735787,88.811,88.749,53.22839402]
[1770498274966,8.23735787,88.811,88.711,178.59677599]
[1770498274967,50.07148946,88.825,88.763,53.22839402]
[1770498275168,58.30729897,88.824,88.763,53.22839402]
[1770498275366,8.23580951,88.823,88.763,53.22839402]
[1770498275566,8.23580951,88.822,88.763,53.22839402]
[1770498275769,8.23580951,88.821,88.769,49.37142735]
[1770498275967,8.23580951,88.82,88.769,49.37142735]
[1770498276167,8.23580951,88.819,88.769,49.37142735]
[1770498276367,8.23580951,88.818,88.769,49.37142735]
[1770498276568,8.23580951,88.817,88.769,49.37142735]
[1770498276766,8.23580951,88.816,88.769,49.37142735]
[1770498276966,50.07148946,88.824,88.769,49.37142735]
[1770498277266,8.23568242,88.823,88.769,49.37142735]
[1770498277466,8.23568242,88.822,88.769,49.37142735]
[1770498277668,8.23568242,88.821,88.769,49.37142735]
[1770498277868,50.07148946,88.824,88.76,9.22458128]
[1770498277869,8.23568242,88.82,88.772,48.96693248]
[1770498278069,10.50040955,88.841,88.772,48.96693248]
[1770498278269,49.26561831,88.843,88.781,48.96693248]
[1770498279269,49.26561831,88.84,88.786,48.96693248]
[1770498279670,10.1388,88.828,88.786,48.96693248]
[1770498279870,49.26561831,88.827,88.772,48.96693248]
[1770498280963,49.26561831,88.825,88.772,48.96693248]
[1770498281968,49.26561831,88.825,88.774,48.96693248]
[1770498282167,10.138,88.836,88.774,48.96693248]
[1770498282570,59.40361831,88.836,88.774,48.96693248]
[1770498283162,59.40461831,88.826,88.774,48.96693248]
[1770498283360,59.40461831,88.826,88.78,3.68951718]
[1770498287875,10.1403,88.815,88.78,3.68951718]
[1770498288566,59.40471831,88.826,88.78,3.68951718]
[1770498290173,59.40491831,88.824,88.78,3.68951718]
[1770498290374,57.46548114,88.823,88.78,3.68951718]
[1770498290568,8.19986283,88.822,88.78,3.68951718]
[1770498290767,8.19986283,88.821,88.79,3.68951718]
[1770498290967,8.19986283,88.82,88.79,3.68951718]
[1770498291167,8.19986283,88.819,88.79,3.68951718]
[1770498291472,8.19986283,88.818,88.781,48.96693248]
[1770498291672,8.19986283,88.817,88.781,48.96693248]
[1770498291868,8.19986283,88.816,88.781,48.96693248]
[1770498292074,49.26561831,88.823,88.781,48.96693248]
[1770498292269,49.26561831,88.823,88.79,3.68951718]
[1770498292979,49.26561831,88.836,88.79,52.65644966]
[1770498293178,8.16788145,88.835,88.8,3.68951718]
[1770498293477,8.16788145,88.834,88.8,3.68951718]
[1770498293673,8.16788145,88.833,88.8,3.68951718]
[1770498293874,8.16788145,88.832,88.8,3.68951718]
[1770498294074,8.16788145,88.831,88.8,3.68951718]
[1770498294274,8.16788145,88.83,88.8,3.68951718]
[1770498294477,49.26561831,88.836,88.8,3.68951718]
[1770498294675,8.16780131,88.835,88.8,3.68951718]
[1770498294875,8.16780131,88.834,88.8,3.68951718]
[1770498295075,8.16780131,88.833,88.8,3.68951718]
[1770498295276,8.16780131,88.832,88.8,3.68951718]
[1770498295579,8.16780131,88.831,88.8,3.68951718]
[1770498295771,8.16780131,88.83,88.79,52.65644966]
[1770498295972,8.16780131,88.829,88.79,52.65644966]
[1770498296173,49.26561831,88.836,88.79,52.65644966]
[1770498296482,49.26561831,88.832,88.79,52.65644966]
[1770498296672,57.4332837,88.831,88.79,48.96693248]
[1770498296981,49.26561831,88.829,88.78,3.68951718]
[1770498297281,49.26561831,88.827,88.78,3.68951718]
[1770498297482,49.26561831,88.825,88.781,48.96693248]
[1770498297676,8.16766539,88.824,88.781,48.96693248]
[1770498297882,8.16766539,88.823,88.781,48.96693248]
[1770498298083,8.16766539,88.822,88.781,48.96693248]
[1770498298284,8.16766539,88.821,88.781,48.96693248]
[1770498298485,8.16766539,88.82,88.781,48.96693248]
[1770498298682,8.16766539,88.819,88.781,48.96693248]
[1770498298885,8.16766539,88.818,88.781,48.96693248]
[1770498299081,49.26561831,88.835,88.79,52.65644966]
[1770498299280,49.26561831,88.833,88.79,52.65644966]
[1770498299480,8.1702795,88.832,88.79,52.65644966]
[1770498299678,8.1702795,88.831,88.79,52.65644966]
[1770498299981,8.1702795,88.83,88.8,3.68951718]
[1770498300185,8.1702795,88.829,88.8,3.68951718]
[1770498300386,8.1702795,88.828,88.8,3.68951718]
[1770498300588,8.1702795,88.827,88.8,3.68951718]
[1770498300779,8.1702795,88.826,88.8,3.68951718]
[1770498300981,8.1702795,88.825,88.8,3.68951718]
[1770498301281,49.26561831,88.833,88.8,3.68951718]
[1770498301482,49.26561831,88.831,88.78,3.68951718]
[1770498301677,49.26561831,88.829,88.78,52.65644966]
[1770498301883,49.26561831,88.827,88.78,52.65644966]
[1770498302084,8.16876323,88.826,88.79,3.68951718]
[1770498302284,57.43438154,88.825,88.79,3.68951718]
[1770498302486,8.16876323,88.824,88.78,52.65644966]
[1770498302684,8.16876323,88.823,88.78,52.65644966]
[1770498302888,8.16876323,88.822,88.78,52.65644966]
[1770498303088,8.16876323,88.821,88.78,52.65644966]
[1770498303282,49.26561831,88.825,88.78,52.65644966]
[1770498303483,8.16853683,88.824,88.78,52.65644966]
[1770498303789,8.16853683,88.823,88.78,52.65644966]
[1770498303988,8.16853683,88.822,88.78,52.65644966]
[1770498304189,8.16853683,88.821,88.78,52.65644966]
[1770498304383,49.26561831,88.825,88.78,52.65644966]
[1770498304585,8.1684073,88.824,88.78,52.65644966]
[1770498304786,8.1684073,88.823,88.78,52.65644966]
[1770498304986,8.1684073,88.822,88.78,52.65644966]
[1770498305187,8.1684073,88.821,88.78,52.65644966]
[1770498305379,49.26561831,88.825,88.79,3.68951718]
[1770498305584,49.90658694,88.843,88.8,3.68951718]
[1770498305785,58.0743534,88.842,88.8,3.68951718]
[1770498305986,8.16776646,88.841,88.8,3.68951718]
[1770498306287,8.16776646,88.84,88.8,3.68951718]
[1770498306489,8.16776646,88.839,88.8,3.68951718]
[1770498306688,8.16776646,88.838,88.8,3.68951718]
[1770498306888,8.16776646,88.837,88.8,3.68951718]
[1770498307088,8.16776646,88.836,88.8,3.68951718]
[1770498307290,8.16776646,88.835,88.8,3.68951718]
[1770498307594,8.16776646,88.834,88.8,3.68951718]
[1770498307793,8.16776646,88.833,88.8,3.68951718]
[1770498307988,8.16776646,88.832,88.8,3.68951718]
[1770498308194,49.90658694,88.842,88.8,3.68951718]
[1770498308493,58.07206256,88.841,88.8,3.68951718]
[1770498308692,8.16547562,88.84,88.8,3.68951718]
[1770498308992,8.16547562,88.839,88.8,3.68951718]
[1770498309190,8.16547562,88.838,88.8,3.68951718]
[1770498309385,8.16547562,88.837,88.8,3.68951718]
[1770498309590,8.16547562,88.836,88.8,3.68951718]
[1770498309785,8.16547562,88.835,88.8,3.68951718]
[1770498309984,8.16547562,88.834,88.8,3.68951718]
[1770498310188,8.16547562,88.833,88.8,3.68951718]
[1770498310393,49.90658694,88.841,88.8,3.68951718]
[1770498310594,8.16440053,88.84,88.8,3.68951718]
[1770498310797,8.16440053,88.839,88.8,3.68951718]
[1770498310988,8.16440053,88.838,88.8,3.68951718]
[1770498311188,8.16440053,88.837,88.79,54.99947856]
[1770498311394,8.16440053,88.836,88.79,54.99947856]
[1770498311594,8.16440053,88.835,88.79,54.99947856]
[1770498311796,8.16440053,88.834,88.79,54.99947856]
[1770498311992,49.90658694,88.841,88.79,54.99947856]
[1770498312289,59.26053841,88.84,88.79,54.99947856]
[1770498312490,51.09594147,88.833,88.79,51.30996138]
[1770498312691,51.09594147,88.831,88.79,51.30996138]
[1770498312890,59.26053841,88.83,88.79,51.30996138]
[1770498313089,8.16459694,88.829,88.79,51.30996138]
[1770498313294,8.16459694,88.828,88.79,51.30996138]
[1770498313495,8.16459694,88.827,88.79,51.30996138]
[1770498313692,51.09594147,88.83,88.79,51.30996138]
[1770498313892,8.16736413,88.829,88.79,51.30996138]
[1770498314093,8.16736413,88.828,88.79,51.30996138]
[1770498314295,8.16736413,88.827,88.79,51.30996138]
[1770498314494,8.16736413,88.826,88.79,51.30996138]
[1770498314689,51.09594147,88.845,88.79,54.99947856]
[1770498314897,51.09594147,88.843,88.8,3.68951718]
[1770498315098,59.26562914,88.842,88.8,3.68951718]
[1770498315392,51.09594147,88.838,88.79,51.30996138]
[1770498315697,51.09594147,88.836,88.79,51.30996138]
[1770498315894,51.09594147,88.834,88.79,51.30996138]
[1770498316095,59.26562914,88.833,88.79,51.30996138]
[1770498316397,59.26562914,88.832,88.79,51.30996138]
[1770498316694,8.16968767,88.831,88.79,51.30996138]
[1770498316896,8.16968767,88.83,88.79,51.30996138]
[1770498317191,8.16968767,88.829,88.79,51.30996138]
[1770498317391,8.16968767,88.828,88.79,51.30996138]
[1770498317584,8.16968767,88.827,88.79,51.30996138]
[1770498317789,8.16968767,88.826,88.79,51.30996138]
[1770498317990,8.16968767,88.825,88.79,51.30996138]
[1770498318185,8.16968767,88.824,88.79,51.30996138]
[1770498318391,8.16968767,88.823,88.79,51.30996138]
[1770498318691,8.16968767,88.822,88.79,51.30996138]
[1770498318893,8.16968767,88.821,88.79,51.30996138]
[1770498319096,8.16968767,88.82,88.79,51.30996138]
[1770498319298,8.18435432,88.819,88.79,54.99947856]
[1770498319598,51.09594147,88.832,88.8,3.68951718]
[1770498319797,51.09594147,88.832,88.79,54.99947856]
[1770498320790,51.09594147,88.832,88.792,10.1429]
[1770498321594,51.09594147,88.832,88.792,60.82807159]
[1770498327893,51.09594147,88.832,88.792,50.68517159]
[1770498331499,8.26715273,88.831,88.792,50.68517159]
[1770498331700,8.26715273,88.83,88.792,50.68517159]
[1770498331998,8.26715273,88.829,88.792,50.68517159]
[1770498332199,8.26715273,88.828,88.792,50.68517159]
[1770498332506,8.26715273,88.827,88.792,50.68517159]
[1770498332699,8.26715273,88.826,88.792,50.68517159]
[1770498332898,51.09594147,88.832,88.792,50.68517159]
[1770498332899,8.26715273,88.825,88.792,50.68517159]
[1770498333099,51.09594147,88.832,88.792,50.68517159]
[1770498333301,8.2675485,88.831,88.792,50.68517159]
[1770498333503,8.2675485,88.83,88.792,50.68517159]
[1770498333701,8.2675485,88.829,88.792,50.68517159]
[1770498334004,8.2675485,88.828,88.792,50.68517159]
[1770498334205,8.2675485,88.827,88.792,50.68517159]
[1770498334400,8.2675485,88.826,88.792,50.68517159]
[1770498334600,8.2675485,88.825,88.792,50.68517159]
[1770498334801,8.2675485,88.824,88.792,50.68517159]
[1770498335001,51.09594147,88.832,88.792,50.68517159]
[1770498335203,59.3646878,88.831,88.792,50.68517159]
[1770498335499,8.26874633,88.83,88.792,50.68517159]
[1770498335696,8.26874633,88.829,88.792,50.68517159]
[1770498336005,8.26874633,88.828,88.792,50.68517159]
[1770498336204,8.26874633,88.827,88.792,50.68517159]
[1770498336407,8.26874633,88.826,88.792,50.68517159]
[1770498336606,8.26874633,88.825,88.792,50.68517159]
[1770498336803,8.26874633,88.824,88.792,50.68517159]
[1770498337004,8.26874633,88.823,88.8,3.68833]
[1770498337309,8.26874633,88.822,88.8,3.68833]
[1770498337508,8.26874633,88.821,88.8,54.00121738]
[1770498337702,8.26874633,88.82,88.8,54.00121738]
[1770498337908,53.35547218,88.842,88.8,54.00121738]
[1770498340812,53.35547218,88.842,88.8,50.31288738]
[1770498342615,53.35547218,88.842,88.8,54.00121738]
[1770498349907,53.35547218,88.84,88.8,54.00121738]
[1770498350111,53.35547218,88.838,88.8,54.00121738]
[1770498350318,8.20026631,88.837,88.8,54.00121738]
[1770498350521,8.20026631,88.836,88.8,54.00121738]
[1770498350817,8.20026631,88.835,88.8,54.00121738]
[1770498351116,8.20026631,88.834,88.8,54.00121738]
[1770498351318,8.20026631,88.833,88.8,54.00121738]
[1770498351517,8.20026631,88.832,88.8,54.00121738]
[1770498351718,8.20026631,88.831,88.8,54.00121738]
[1770498351916,8.20026631,88.83,88.8,54.00121738]
[1770498352220,8.20026631,88.829,88.8,54.00121738]
[1770498352420,8.20026631,88.828,88.8,54.00121738]
[1770498352719,8.20026631,88.827,88.8,54.00121738]
[1770498352921,8.20026631,88.826,88.8,54.00121738]
[1770498353219,8.20026631,88.825,88.8,54.00121738]
[1770498353420,8.20026631,88.824,88.8,54.00121738]
[1770498353609,8.20026631,88.823,88.8,54.00121738]
[1770498353808,8.20026631,88.822,88.8,54.00121738]
[1770498354008,8.20026631,88.821,88.8,54.00121738]
[1770498354212,53.35547218,88.838,88.8,54.00121738]
[1770498354421,8.20184193,88.837,88.8,54.00121738]
[1770498354622,8.20184193,88.836,88.8,50.31288738]
[1770498354821,8.20184193,88.835,88.8,50.31288738]
[1770498355009,8.20184193,88.834,88.8,50.31288738]
[1770498355320,8.20184193,88.833,88.8,50.31288738]
[1770498355521,8.20184193,88.832,88.8,50.31288738]
[1770498355712,8.20184193,88.831,88.8,50.31288738]
[1770498355915,8.20184193,88.83,88.8,50.31288738]
[1770498356109,8.20184193,88.829,88.8,50.31288738]
[1770498356313,8.20184193,88.828,88.8,50.31288738]
[1770498356520,8.20184193,88.827,88.8,50.31288738]
[1770498356718,8.20184193,88.826,88.8,50.31288738]
[1770498356915,8.20184193,88.825,88.8,50.31288738]
[1770498357115,8.20184193,88.824,88.8,50.31288738]
[1770498357320,8.20184193,88.823,88.8,50.31288738]
[1770498357522,53.35547218,88.838,88.8,50.31288738]
[1770498357716,8.20146483,88.837,88.8,50.31288738]
[1770498357915,8.20146483,88.836,88.8,50.31288738]
[1770498358117,8.20146483,88.835,88.8,50.31288738]
[1770498358321,8.20146483,88.834,88.8,50.31288738]
[1770498358616,8.20146483,88.833,88.8,50.31288738]
[1770498358817,8.20146483,88.832,88.8,50.31288738]
[1770498359023,8.20146483,88.831,88.8,54.00121738]
[1770498359218,10.50645424,88.849,88.811,50.31288738]
[1770498359525,53.35547218,88.856,88.811,50.31288738]
[1770498360023,53.35547218,88.856,88.82,3.68833]
[1770498360821,53.35547218,88.856,88.811,50.31288738]
[1770498361218,53.35547218,88.852,88.8,3.68833]
[1770498361428,53.35547218,88.839,88.8,54.00121738]
[1770498361719,20.6921222,88.863,88.8,54.00121738]
[1770498361720,63.86192642,88.832,88.8,50.31288738]
[1770498361923,10.50645424,88.831,88.8,50.31288738]
[1770498362428,53.35547218,88.825,88.77,3.68833]
[1770498362619,53.35547218,88.815,88.76,3.68833]
[1770498362819,74.00222642,88.815,88.761,10.1463]
[1770498363123,53.35547218,88.814,88.761,10.1463]
[1770498363916,53.35547218,88.814,88.77,3.68833]
[1770498364512,53.35547218,88.814,88.77,54.00121738]
[1770498365117,53.35547218,88.811,88.77,54.00121738]
[1770498365924,53.35547218,88.811,88.77,50.31288738]
[1770498366220,62.0595693,88.81,88.77,50.31288738]
[1770498367117,51.55311506,88.81,88.77,50.31288738]
[1770498371328,8.45947252,88.809,88.77,50.31288738]
[1770498371631,8.45947252,88.808,88.77,50.31288738]
[1770498371824,8.45947252,88.807,88.77,50.31288738]
[1770498372026,8.45947252,88.806,88.77,50.31288738]
[1770498372228,8.45947252,88.805,88.77,50.31288738]
[1770498372531,8.45947252,88.804,88.77,50.31288738]
[1770498372724,8.45947252,88.803,88.77,50.31288738]
[1770498372925,8.45947252,88.802,88.77,50.31288738]
[1770498373226,8.45947252,88.802,88.757,10.1469]
[1770498373227,59.53574419,88.801,88.757,51.82353117]
[1770498373430,51.07627167,88.799,88.757,51.82353117]
[1770498373622,51.07627167,88.797,88.757,51.82353117]
[1770498373823,51.07627167,88.795,88.757,51.82353117]
[1770498374123,51.07627167,88.793,88.757,51.82353117]
[1770498374322,51.07627167,88.789,88.741,51.82353117]
[1770498374531,51.07627167,88.787,88.741,51.82353117]
[1770498374831,51.07627167,88.785,88.741,51.82353117]
[1770498375025,51.07627167,88.783,88.741,51.82353117]
[1770498375222,51.07627167,88.795,88.761,51.82353117]
[1770498375423,8.44894085,88.794,88.761,51.82353117]
[1770498375632,8.44894085,88.793,88.761,51.82353117]
[1770498375929,8.44894085,88.792,88.761,51.82353117]
[1770498376231,51.07627167,88.806,88.761,51.82353117]
[1770498376432,3.68833,88.81,88.761,51.82353117]
[1770498376433,51.07627167,88.804,88.761,51.82353117]
[1770498376630,59.52326339,88.803,88.761,51.82353117]
[1770498376831,8.44699172,88.802,88.761,51.82353117]
[1770498377031,8.44699172,88.801,88.761,51.82353117]
[1770498377333,8.44699172,88.8,88.761,51.82353117]
[1770498377528,8.44699172,88.799,88.761,51.82353117]
[1770498377724,8.44699172,88.798,88.761,51.82353117]
[1770498377928,8.44699172,88.797,88.761,51.82353117]
[1770498378129,8.44699172,88.796,88.761,51.82353117]
[1770498378328,8.44699172,88.795,88.761,51.82353117]
[1770498378629,8.44699172,88.794,88.761,51.82353117]
[1770498378831,8.44699172,88.793,88.761,51.82353117]
[1770498379027,9.172e-05,88.792,88.771,51.82353117]
[1770498379227,51.07627167,88.827,88.771,51.82353117]
[1770498380221,51.07627167,88.827,88.781,51.82353117]
[1770498384331,61.21517167,88.827,88.781,51.82353117]
[1770498384633,20.6921222,88.86,88.77,3.68911507]
[1770498384634,51.07627167,88.819,88.77,51.82353117]
[1770498385236,51.07627167,88.819,88.77,55.51264624]
[1770498385836,51.07627167,88.815,88.77,55.51264624]
[1770498386232,51.07627167,88.826,88.781,51.82353117]
[1770498390835,51.07627167,88.821,88.781,51.82353117]
[1770498391036,51.07627167,88.819,88.781,51.82353117]
[1770498391239,51.07627167,88.817,88.781,51.82353117]
[1770498391446,59.49162015,88.816,88.781,51.82353117]
[1770498391634,51.07627167,88.814,88.781,51.82353117]
[1770498391835,8.41534848,88.813,88.781,51.82353117]